bitfinex/quotes_SOLUSD_20241103
["timestamp","ask_amount","ask_price","bid_price","bid_amount"]
[1730647850076,6.4007424,158.51,158.47,0.12549]
[1730647850270,0.0919424,158.5,158.47,0.12549]
[1730647850472,6.4007424,158.51,158.47,0.12549]
[1730647850681,31.5036,158.55,158.49,0.12549]
[1730647850682,0.0919424,158.53,158.49,0.12549]
[1730647851099,0.0919424,158.51,158.49,0.12549]
[1730647852173,6.3082,158.53,158.49,0.12549]
[1730647852375,0.0919424,158.51,158.49,0.12549]
[1730647852568,0.0919424,158.49,158.46,0.12549]
[1730647852892,0.0919424,158.49,158.46,0.25098]
[1730647853095,0.0919424,158.5,158.46,0.25098]
[1730647853264,0.0919424,158.49,158.46,0.25098]
[1730647853672,0.0919424,158.48,158.42,12.7279]
[1730647853885,0.0919424,158.48,158.43,0.12549]
[1730647854574,0.0919424,158.47,158.43,0.12549]
[1730647854787,0.0919424,158.46,158.43,0.25098]
[1730647855192,0.0919424,158.46,158.43,0.37647]
[1730647855392,0.0919424,158.48,158.43,0.37647]
[1730647855588,0.0919424,158.47,158.43,0.37647]
[1730647855999,0.0919424,158.46,158.42,22.0931]
[1730647857197,0.0919424,158.46,158.43,0.37647]
[1730647857699,0.0919424,158.47,158.43,0.37647]
[1730647859097,6.4019424,158.48,158.43,0.37647]
[1730647859283,0.0919424,158.46,158.43,0.37647]
[1730647860299,0.0919424,158.46,158.43,0.25098]
[1730647860884,0.0919424,158.47,158.43,0.37647]
[1730647861601,0.0919424,158.46,158.43,6.68837]
[1730647861799,6.31,158.48,158.43,6.68837]
[1730647861800,0.0919424,158.47,158.43,6.68837]
[1730647862095,0.0919424,158.53,158.47,0.25098]
[1730647862300,0.0919424,158.54,158.48,0.12549]
[1730647863006,6.3994424,158.54,158.48,0.12549]
[1730647863186,0.0919424,158.55,158.48,0.12549]
[1730647863499,31.5212,158.63,158.48,0.12549]
[1730647863500,0.0919424,158.6,158.52,0.12549]
[1730647863702,0.0919424,158.6,158.54,0.12549]
[1730647863913,0.0919424,158.57,158.54,0.12549]
[1730647864202,0.0919424,158.59,158.54,0.12549]
[1730647864685,0.0919424,158.57,158.54,0.12549]
[1730647865091,0.0919424,158.56,158.55,0.12549]
[1730647865292,0.0919424,158.56,158.55,0.37647]
[1730647865700,0.0919424,158.58,158.55,0.37647]
[1730647865997,0.0919424,158.58,158.56,0.25098]
[1730647866299,0.0919424,158.59,158.56,0.25098]
[1730647866507,6.3971424,158.6,158.56,0.25098]
[1730647866804,6.6147288,158.65,158.58,0.12549]
[1730647866805,0.0919424,158.62,158.58,0.12549]
[1730647867010,0.0919424,158.64,158.6,0.37647]
[1730647867300,0.3999712,158.65,158.6,0.37647]
[1730647868292,0.3080288,158.65,158.6,22.44407]
[1730647868477,0.3080288,158.65,158.64,0.37647]
[1730647869700,0.3080288,158.65,158.64,26.67997]
[1730647871187,0.3080288,158.65,158.64,50.456854]
[1730647871614,0.3080288,158.73,158.66,0.22549]
[1730647871910,0.3080288,158.73,158.69,20.37647]
[1730647872492,0.0919424,158.72,158.69,0.37647]
[1730647872910,0.0919424,158.7,158.67,20.0]
[1730647873102,0.0919424,158.67,158.62,6.4674]
[1730647873300,0.0919424,158.67,158.62,12.7717]
[1730647873492,0.0919424,158.67,158.63,0.12549]
[1730647873688,0.0919424,158.67,158.62,28.5326]
[1730647874296,0.0919424,158.7,158.62,28.5326]
[1730647874492,0.0919424,158.69,158.63,20.12549]
[1730647874702,0.0919424,158.68,158.63,20.12549]
[1730647875198,0.0919424,158.68,158.65,0.12549]
[1730647875403,0.0919424,158.69,158.65,0.12549]
[1730647875596,0.0919424,158.7,158.65,0.12549]
[1730647875806,0.0919424,158.69,158.65,0.12549]
[1730647876419,0.3080288,158.73,158.67,0.12549]
[1730647876919,0.3080288,158.73,158.69,0.12549]
[1730647877812,0.3080288,158.73,158.72,0.12549]
[1730647879208,0.3080288,158.73,158.72,6.55138]
[1730647879505,0.3080288,158.73,158.72,26.67687]
[1730647880098,0.3080288,158.73,158.72,20.37647]
[1730647880301,0.3080288,158.73,158.72,0.37647]
[1730647880501,0.3080288,158.73,158.72,6.67687]
[1730647880701,0.3080288,158.73,158.72,26.67687]
[1730647882109,0.3080288,158.73,158.72,50.453754]
[1730647882919,2.88e-05,158.73,158.72,50.553754]
[1730647883113,2.88e-05,158.73,158.72,51.81300582]
[1730647883417,0.3080288,158.81,158.75,0.1]
[1730647883623,0.3080288,158.81,158.76,0.37647]
[1730647883799,0.3080288,158.81,158.78,20.37647]
[1730647884001,0.3080288,158.81,158.77,23.776884]
[1730647884002,0.3080288,158.81,158.8,20.37647]
[1730647884721,0.3080288,158.81,158.8,44.153354]
[1730647885230,20.5701,158.91,158.84,0.12549]
[1730647885921,20.5701,158.91,158.86,0.25098]
[1730647886327,6.2929,158.91,158.86,0.25098]
[1730647886504,6.2929,158.91,158.85,20.25098]
[1730647886825,6.2924,158.92,158.86,0.12549]
[1730647887030,6.3357,158.93,158.86,0.12549]
[1730647888028,12.6277,158.93,158.88,0.37647]
[1730647889332,6.4568056,158.94,158.81,20.0]
[1730647889501,6.4568056,158.94,158.84,0.25098]
[1730647889707,6.4568056,158.94,158.85,0.12549]
[1730647890015,22.1860056,158.94,158.85,0.12549]
[1730647890219,23.876884,158.93,158.84,0.12549]
[1730647890405,23.876884,158.93,158.81,22.0388]
[1730647890605,23.776884,158.93,158.81,22.0388]
[1730647890813,23.776884,158.93,158.82,0.12549]
[1730647891033,23.876884,158.93,158.82,0.12549]
[1730647891324,6.2924,158.92,158.84,0.12549]
[1730647891524,6.2924,158.92,158.84,0.37647]
[1730647892322,6.2924,158.92,158.84,20.37647]
[1730647893311,0.1,158.91,158.8,6.2969]
[1730647893601,23.776884,158.9,158.8,6.2969]
[1730647893805,22.9799,158.88,158.76,6.6447]
[1730647894010,23.776884,158.87,158.77,6.2984]
[1730647894240,23.776884,158.87,158.76,6.6447]
[1730647894411,23.876884,158.87,158.77,15.746]
[1730647894827,0.1,158.85,158.75,6.299]
[1730647895130,20.1,158.84,158.74,22.0484]
[1730647895337,23.876884,158.81,158.71,15.9542355]
[1730647895633,6.3964,158.82,158.71,0.2024355]
[1730647895634,23.976884,158.79,158.71,0.2024355]
[1730647896005,23.876884,158.77,158.71,0.2024355]
[1730647896219,23.776884,158.77,158.71,0.2024355]
[1730647897225,0.1,158.76,158.71,0.2024355]
[1730647897432,23.776884,158.75,158.71,0.2024355]
[1730647898215,6.2988,158.76,158.71,0.2024355]
[1730647898419,23.776884,158.75,158.71,0.2024355]
[1730647898837,6.2988,158.76,158.71,0.2024355]
[1730647899337,16.3319,158.78,158.71,0.2024355]
[1730647899511,23.776884,158.77,158.71,22.2549355]
[1730647899713,23.776884,158.77,158.71,15.9544355]
[1730647900637,6.298,158.78,158.72,0.25098]
[1730647901119,12.9454,158.8,158.72,0.25098]
[1730647901629,16.3319,158.83,158.74,0.25098]
[1730647901829,6.648,158.84,158.75,0.12549]
[1730647902042,12.9439,158.84,158.75,0.12549]
[1730647903115,13.0439,158.84,158.74,6.55048]
[1730647903612,28.683,158.84,158.74,22.29948]
[1730647904021,23.776884,158.83,158.74,22.29948]
[1730647904644,6.2964,158.82,158.75,0.12549]
[1730647906313,6.2964,158.82,158.74,22.29958]
[1730647906519,23.776884,158.81,158.74,22.29958]
[1730647906814,6.2972,158.8,158.74,22.29958]
[1730647907435,6.296,158.83,158.75,0.12549]
[1730647907824,6.296,158.83,158.76,0.25098]
[1730647908238,6.2956,158.84,158.77,0.25098]
[1730647908457,6.2944,158.87,158.78,0.25098]
[1730647908741,6.3944,158.87,158.78,6.54878]
[1730647909424,0.1,158.86,158.77,15.7457]
[1730647909841,23.876884,158.86,158.77,15.7457]
[1730647910042,20.0,158.85,158.77,15.7457]
[1730647910230,23.776884,158.84,158.77,22.0441]
[1730647910620,23.776884,158.84,158.74,31.498]
[1730647910621,23.776884,158.84,158.75,0.12549]
[1730647910821,6.296,158.83,158.76,0.12549]
[1730647911540,6.2957,158.84,158.76,0.25098]
[1730647912330,6.2944,158.87,158.77,0.12549]
[1730647912720,6.2944,158.87,158.78,22.043]
[1730647913632,6.2944,158.87,158.79,0.37647]
[1730647913842,16.4326,158.88,158.8,22.0402]
[1730647915345,23.776884,158.87,158.8,22.0402]
[1730647915542,30.071284,158.87,158.8,22.0402]
[1730647917047,30.071284,158.87,158.77,26.298]
[1730647918155,45.907384,158.87,158.77,22.044]
[1730647918327,45.807384,158.87,158.77,22.044]
[1730647919345,45.907384,158.87,158.77,22.044]
[1730647919732,45.807384,158.87,158.77,22.044]
[1730647920445,0.35098,158.84,158.74,15.7486]
[1730647920741,0.35098,158.84,158.71,13.12446866]
[1730647920742,23.776884,158.81,158.71,13.12446866]
[1730647920931,23.776884,158.81,158.71,0.2024355]
[1730647921326,23.776884,158.81,158.71,6.5030355]
[1730647922428,23.776884,158.79,158.71,6.5030355]
[1730647922748,23.776884,158.79,158.71,22.2550355]
[1730647923063,0.25098,158.78,158.71,0.2024355]
[1730647923239,23.776884,158.77,158.71,0.2024355]
[1730647923428,20.25098,158.78,158.71,0.2024355]
[1730647923634,23.776884,158.77,158.71,0.2024355]
[1730647924464,23.776884,158.75,158.71,0.2024355]
[1730647924748,6.2983,158.78,158.71,15.9544355]
[1730647924952,22.0433,158.78,158.71,0.2024355]
[1730647926346,23.776884,158.77,158.71,0.2024355]
[1730647926557,6.298,158.78,158.71,6.5031355]
[1730647927454,6.298,158.78,158.71,22.2551355]
[1730647927841,15.7423,158.81,158.71,22.2551355]
[1730647928349,23.776884,158.8,158.71,22.2551355]
[1730647928529,6.2964,158.82,158.72,16.84698]
[1730647928735,6.2964,158.82,158.73,20.0]
[1730647929461,6.2964,158.82,158.74,6.2996]
[1730647929641,0.12549,158.81,158.72,6.3003]
[1730647930252,24.027864,158.81,158.72,6.3003]
[1730647930647,23.776884,158.81,158.72,22.0513]
[1730647931163,6.2964,158.82,158.72,22.0513]
[1730647932245,0.12549,158.81,158.72,22.0513]
[1730647932760,24.027864,158.81,158.72,22.0513]
[1730647933146,6.2972,158.8,158.72,22.0513]
[1730647934237,6.2964,158.82,158.73,0.37647]
[1730647934458,6.2964,158.82,158.73,0.25098]
[1730647934650,6.2964,158.82,158.72,22.0513]
[1730647934837,22.0374,158.82,158.72,22.0513]
[1730647936165,23.776884,158.79,158.71,0.2024355]
[1730647936754,23.776884,158.77,158.71,0.2024355]
[1730647937847,6.2988,158.76,158.71,0.2024355]
[1730647942145,6.2988,158.76,158.71,6.5030355]
[1730647942345,6.2988,158.76,158.71,22.2550355]
[1730647943763,15.743,158.8,158.71,22.2550355]
[1730647943962,23.776884,158.79,158.71,22.2550355]
[1730647944156,15.743,158.8,158.71,22.2550355]
[1730647945066,6.2968,158.81,158.72,20.12549]
[1730647945753,15.7399,158.84,158.72,20.12549]
[1730647945947,22.0355,158.84,158.73,22.05]
[1730647947067,15.7399,158.84,158.73,15.75]
[1730647948466,22.0355,158.84,158.73,15.75]
[1730647949163,0.12549,158.83,158.73,15.75]
[1730647949369,20.25098,158.8,158.7,22.29456538]
[1730647949562,23.776884,158.79,158.7,22.29456538]
[1730647949771,23.776884,158.79,158.7,15.7529]
[1730647950274,23.776884,158.79,158.69,6.3015]
[1730647950275,39.834484,158.79,158.69,6.3015]
[1730647950476,30.075284,158.77,158.68,29.79078874]
[1730647950975,45.821284,158.77,158.68,29.79078874]
[1730647951177,0.25098,158.76,158.68,6.89288874]
[1730647951357,23.776884,158.75,158.68,6.89288874]
[1730647951669,23.776884,158.75,158.68,0.3444773]
[1730647952578,6.2996,158.74,158.68,0.3444773]
[1730647953657,23.776884,158.73,158.68,0.3444773]
[1730647954660,6.3004,158.72,158.68,0.3444773]
[1730647954863,23.776884,158.71,158.68,0.3444773]
[1730647955983,6.3011,158.7,158.68,0.3444773]
[1730647957560,6.3,158.73,158.68,0.3444773]
[1730647959372,6.2992,158.75,158.68,0.3444773]
[1730647960060,6.2992,158.75,158.68,6.6463773]
[1730647960270,6.2992,158.75,158.68,6.6462773]
[1730647960469,6.2992,158.75,158.68,22.4011773]
[1730647961589,15.8459,158.78,158.68,22.4011773]
[1730647961770,23.776884,158.76,158.68,22.4011773]
[1730647961966,6.2984,158.77,158.69,20.37647]
[1730647962278,6.2972,158.8,158.7,16.2621]
[1730647962463,6.2972,158.8,158.71,6.3571]
[1730647963089,6.2972,158.8,158.72,20.37647]
[1730647963674,15.7391,158.84,158.72,20.37647]
[1730647963870,22.0347,158.84,158.73,22.05]
[1730647965290,23.776884,158.83,158.73,22.05]
[1730647965671,23.776884,158.81,158.71,12.6578]
[1730647966682,20.0,158.8,158.71,12.6578]
[1730647967385,6.298,158.78,158.7,32.0149]
[1730647967563,23.776884,158.77,158.68,26.6462773]
[1730647967983,23.776884,158.77,158.68,6.6462773]
[1730647968687,6.2988,158.76,158.68,6.6462773]
[1730647968890,22.0458,158.76,158.68,0.3444773]
[1730647969067,23.776884,158.75,158.68,0.3444773]
[1730647971180,23.776884,158.73,158.68,0.3444773]
[1730647972082,6.2996,158.74,158.68,0.3444773]
[1730647973068,43.776884,158.75,158.68,0.3444773]
[1730647974394,6.2996,158.74,158.68,0.3444773]
[1730647974798,6.2996,158.74,158.68,22.4010773]
[1730647976302,23.776884,158.76,158.68,0.3444773]
[1730647976987,20.0,158.77,158.68,22.4010773]
[1730647977188,22.0436,158.78,158.69,0.37647]
[1730647977189,6.298,158.78,158.69,0.37647]
[1730647977388,6.298,158.78,158.69,2.93330495]
[1730647978084,6.298,158.78,158.7,6.3011]
[1730647980397,23.776884,158.77,158.68,16.0993773]
[1730647980602,20.0,158.76,158.68,16.0993773]
[1730647980893,23.902374,158.75,158.68,0.3444773]
[1730647981095,23.776884,158.73,158.68,0.3444773]
[1730647982689,6.3004,158.72,158.68,0.3444773]
[1730647984187,23.776884,158.71,158.68,0.3444773]
[1730647984593,23.776884,158.69,158.68,0.3444773]
[1730647985190,133.313354,158.69,158.68,7.73e-05]
[1730647985399,139.402054,158.69,158.68,7.73e-05]
[1730647986601,145.703554,158.69,158.68,7.73e-05]
[1730647987895,20.0,158.62,158.6,0.3080993]
[1730647988102,23.776884,158.61,158.6,0.3080993]
[1730647988288,20.0,158.62,158.6,0.3080993]
[1730647988487,20.0,158.63,158.6,0.3080993]
[1730647988705,23.776884,158.62,158.6,0.3080993]
[1730647988904,20.0,158.63,158.6,0.3080993]
[1730647989888,6.3039,158.63,158.6,0.3080993]
[1730647990882,20.0,158.64,158.6,0.3080993]
[1730647991089,6.0887,158.69,158.6,0.3080993]
[1730647991385,6.3019,158.68,158.6,6.6127993]
[1730647991711,6.3019,158.68,158.62,16.6296]
[1730647991890,6.3,158.73,158.62,16.6296]
[1730647992905,22.05,158.73,158.62,16.6296]
[1730647993105,23.776884,158.72,158.63,6.3039]
[1730647993314,6.2996,158.74,158.64,0.37647]
[1730647993511,6.2996,158.74,158.64,20.37647]
[1730647994408,15.1328,158.76,158.64,20.37647]
[1730647994591,6.2992,158.75,158.65,6.3031]
[1730647994791,23.776884,158.74,158.65,6.3031]
[1730647995711,6.3,158.73,158.65,6.3031]
[1730647996588,6.3,158.73,158.65,22.061]
[1730647998018,6.2983,158.78,158.68,44.253354]
[1730647998194,6.2983,158.78,158.68,44.153354]
[1730647998892,6.2983,158.78,158.68,20.37647]
[1730647999789,21.6934,158.85,158.68,20.37647]
[1730647999989,20.1,158.83,158.7,20.37647]
[1730648000215,22.1347,158.84,158.7,20.37647]
[1730648000514,0.12549,158.83,158.7,20.37647]
[1730648001232,23.776884,158.81,158.71,22.0528]
[1730648001718,20.0,158.78,158.68,22.30778]
[1730648001896,23.776884,158.77,158.68,22.0568]
[1730648002103,23.776884,158.75,158.67,6.6496]
[1730648002493,20.0,158.76,158.67,28.7076]
[1730648002705,24.127864,158.81,158.68,0.12549]
[1730648003012,20.0,158.78,158.68,0.12549]
[1730648003216,6.2984,158.77,158.69,22.0554]
[1730648003807,6.2984,158.77,158.67,6.6496]
[1730648004206,22.0444,158.77,158.68,0.12549]
[1730648005026,22.0444,158.77,158.68,22.0568]
[1730648005213,20.0,158.76,158.68,22.0568]
[1730648006011,22.0444,158.77,158.68,22.0568]
[1730648006206,6.2984,158.77,158.68,22.0568]
[1730648006725,6.2972,158.8,158.69,20.37647]
[1730648007112,6.296,158.83,158.71,0.37647]
[1730648007828,6.296,158.83,158.73,7.02607]
[1730648008935,22.0342,158.85,158.74,22.0486]
[1730648009222,23.776884,158.84,158.74,22.0486]
[1730648010106,6.296,158.83,158.74,22.0486]
[1730648010902,20.0,158.82,158.74,15.749]
[1730648011311,23.776884,158.81,158.73,6.6496]
[1730648012120,6.2972,158.8,158.74,6.2996]
[1730648013216,0.1,158.87,158.75,0.37647]
[1730648013217,20.0,158.85,158.75,0.37647]
[1730648014330,6.2956,158.84,158.76,6.2988]
[1730648015207,6.2956,158.84,158.76,22.0458]
[1730648015941,6.2944,158.87,158.79,0.37647]
[1730648016251,6.2944,158.87,158.8,22.0402]
[1730648017923,6.2944,158.87,158.81,0.25098]
[1730648018127,0.3080993,158.88,158.82,0.37647]
[1730648019212,6.6020993,158.88,158.81,21.8812]
[1730648019519,6.6020993,158.88,158.81,28.178]
[1730648019908,6.6020993,158.88,158.81,21.8812]
[1730648020517,6.6020993,158.88,158.81,6.1392]
[1730648020828,6.6020993,158.88,158.78,31.6431]
[1730648020829,22.3371993,158.88,158.78,31.6431]
[1730648021020,0.12549,158.86,158.77,6.1392]
[1730648021329,20.0,158.86,158.77,6.1392]
[1730648022148,6.2952,158.85,158.77,6.1392]
[1730648024124,22.0333,158.85,158.77,6.1392]
[1730648024929,22.0333,158.85,158.77,12.4374]
[1730648025126,6.2952,158.85,158.77,6.1392]
[1730648025345,6.2952,158.85,158.78,20.37647]
[1730648025722,0.3080993,158.88,158.78,20.37647]
[1730648025949,6.2947,158.87,158.78,20.37647]
[1730648026446,6.2947,158.87,158.8,0.37647]
[1730648026647,6.6020993,158.88,158.8,0.37647]
[1730648027444,6.6020993,158.88,158.82,0.37647]
[1730648028348,0.3080993,158.88,158.82,44.153354]
[1730648028546,0.3080993,158.88,158.84,20.37647]
[1730648028753,0.3080993,158.88,158.86,0.37647]
[1730648029643,0.3080993,158.88,158.87,6.54538]
[1730648030040,0.3080993,158.88,158.87,22.41807]
[1730648030348,0.3080993,158.88,158.87,66.194954]
[1730648032236,0.3080993,158.96,158.89,20.12549]
[1730648032446,0.3080993,158.96,158.9,0.12549]
[1730648033437,6.5990993,158.96,158.9,0.12549]
[1730648033740,6.5990993,158.96,158.9,6.41829]
[1730648033944,6.5990993,158.96,158.91,0.12549]
[1730648034255,6.5990993,158.96,158.9,6.41829]
[1730648034256,6.5990993,158.96,158.9,15.7331]
[1730648034845,0.3080993,158.96,158.91,0.12549]
[1730648035248,0.3080993,158.96,158.91,20.12549]
[1730648035566,0.3080993,158.96,158.93,0.12549]
[1730648036147,0.3080993,158.96,158.94,6.2916]
[1730648037050,0.3080993,158.96,158.93,15.85549]
[1730648037449,0.3080993,158.96,158.93,15.73]
[1730648038377,6.5988993,158.96,158.91,6.66897]
[1730648038545,0.3080993,158.96,158.91,6.66897]
[1730648038952,0.3080993,158.96,158.91,22.40107]
[1730648039473,0.3080993,158.96,158.91,15.7321]
[1730648039474,6.5990993,158.96,158.91,15.7321]
[1730648040156,6.5990993,158.96,158.9,6.2931]
[1730648040359,6.5990993,158.96,158.87,15.7472]
[1730648040562,22.3262993,158.96,158.87,15.7472]
[1730648040756,22.3262993,158.96,158.85,15.7378]
[1730648041163,22.3262993,158.96,158.85,22.033]
[1730648041355,22.3262993,158.96,158.86,0.12549]
[1730648042159,22.3262993,158.96,158.86,0.25098]
[1730648042461,22.3262993,158.96,158.85,22.0326]
[1730648042462,23.776884,158.95,158.85,22.0326]
[1730648043068,46.591384,158.95,158.84,6.1454]
[1730648043378,46.591384,158.95,158.83,16.2176]
[1730648043379,23.776884,158.93,158.83,16.2176]
[1730648043688,23.776884,158.93,158.79,6.2009]
[1730648043689,23.776884,158.91,158.79,21.9449]
[1730648043865,23.776884,158.91,158.79,28.2425]
[1730648044060,20.0,158.92,158.79,28.2425]
[1730648044478,42.0235,158.92,158.8,0.12549]
[1730648044785,23.776884,158.91,158.79,28.2425]
[1730648044959,23.776884,158.91,158.8,0.25098]
[1730648045165,23.776884,158.91,158.81,0.12549]
[1730648045463,6.2932,158.9,158.82,6.2964]
[1730648045678,6.2932,158.9,158.82,22.0374]
[1730648045857,6.2932,158.9,158.83,0.37647]
[1730648046472,26.2916,158.94,158.82,22.0374]
[1730648046674,0.12549,158.93,158.82,15.741]
[1730648047182,20.0,158.92,158.82,22.0374]
[1730648047382,6.2928,158.91,158.82,15.741]
[1730648047760,6.2928,158.91,158.83,0.25098]
[1730648048465,16.1789,158.95,158.86,0.25098]
[1730648048668,0.3080993,158.96,158.87,0.12549]
[1730648048878,6.5990993,158.96,158.87,0.12549]
[1730648049576,6.5990993,158.96,158.87,6.41989]
[1730648049968,23.776884,158.95,158.85,31.9547]
[1730648050171,23.776884,158.95,158.85,38.2499]
[1730648050880,6.5990993,158.96,158.86,6.32639]
[1730648051083,6.5990993,158.96,158.88,0.25098]
[1730648051266,6.5990993,158.96,158.89,0.12549]
[1730648051460,6.5990993,158.96,158.9,6.2932]
[1730648052265,6.5990993,158.96,158.89,15.85909]
[1730648052465,6.5990993,158.96,158.87,26.2941]
[1730648052873,6.5990993,158.96,158.88,0.12549]
[1730648053178,6.5990993,158.96,158.88,0.25098]
[1730648053376,6.5990993,158.96,158.87,22.0302]
[1730648054593,43.776884,158.95,158.84,22.034]
[1730648055977,22.0208,158.94,158.84,15.7388]
[1730648056359,43.776884,158.93,158.84,15.7388]
[1730648056566,0.12549,158.92,158.82,6.2009]
[1730648056773,0.37647,158.92,158.82,6.2009]
[1730648056964,15.2164,158.91,158.81,38.256]
[1730648057563,20.0,158.9,158.81,31.9596]
[1730648057768,23.776884,158.89,158.79,6.5695246]
[1730648057969,42.0291,158.88,158.79,12.8671246]
[1730648058177,42.0291,158.88,158.79,6.2976]
[1730648059064,42.0291,158.88,158.78,6.1963]
[1730648059274,42.0291,158.88,158.78,12.4942]
[1730648060672,42.0291,158.88,158.78,28.2392]
[1730648061386,6.294,158.88,158.79,0.37647]
[1730648062698,20.0,158.88,158.78,28.2392]
[1730648063873,6.2944,158.87,158.78,28.2392]
[1730648064289,22.0305,158.87,158.77,15.5514]
[1730648064591,22.0305,158.87,158.77,37.5956]
[1730648064969,6.2944,158.87,158.78,0.37647]
[1730648065182,6.2944,158.87,158.78,20.37647]
[1730648066183,20.0,158.89,158.79,22.0416]
[1730648066387,20.0,158.89,158.79,15.744]
[1730648066567,20.0,158.89,158.79,22.0416]
[1730648066974,20.0,158.87,158.79,15.744]
[1730648068092,6.2948,158.86,158.79,15.744]
[1730648068301,3.7948,158.86,158.79,15.744]
[1730648068498,20.0,158.87,158.79,15.744]
[1730648068681,20.0,158.87,158.77,21.8497]
[1730648069386,22.0319,158.86,158.77,37.5957]
[1730648070387,22.0319,158.86,158.77,31.2974]
[1730648070776,22.0319,158.86,158.77,37.5958]
[1730648070994,22.0319,158.86,158.77,15.5514]
[1730648071182,20.0,158.85,158.75,12.86865759]
[1730648071374,20.0,158.85,158.75,22.0471]
[1730648071774,22.0319,158.86,158.76,0.12549]
[1730648071994,6.2948,158.86,158.76,20.12549]
[1730648072385,6.2948,158.86,158.77,24.027864]
[1730648072781,20.0,158.87,158.78,22.043]
[1730648074104,6.294,158.88,158.78,22.043]
[1730648074491,20.0,158.88,158.78,22.043]
[1730648075705,6.2944,158.87,158.78,22.043]
[1730648076094,22.0305,158.87,158.78,22.043]
[1730648076393,20.0,158.86,158.78,15.745]
[1730648077101,22.0305,158.87,158.78,22.043]
[1730648077502,43.776884,158.89,158.76,20.12549]
[1730648077701,43.776884,158.89,158.77,24.027864]
[1730648078699,20.0,158.87,158.78,22.043]
[1730648079705,6.2948,158.86,158.78,22.043]
[1730648080507,15.7351,158.88,158.78,22.043]
[1730648080707,6.294,158.88,158.79,24.153354]
[1730648081308,6.2924,158.92,158.83,24.153354]
[1730648082210,6.2924,158.92,158.84,20.0]
[1730648082600,15.7293,158.94,158.85,22.28428]
[1730648091521,6.2912,158.95,158.87,0.25098]
[1730648091725,6.2912,158.95,158.88,0.12549]
[1730648091921,6.2912,158.95,158.89,0.25098]
[1730648092618,15.7229,159.01,158.9,15.8955]
[1730648092927,6.2894,159.0,158.93,0.12549]
[1730648093124,6.57314129,159.02,158.94,0.12549]
[1730648093324,6.57314129,159.02,158.95,20.37647]
[1730648093509,6.2885,159.03,158.95,44.153354]
[1730648094022,0.3080993,159.04,158.95,44.153354]
[1730648094331,6.2881,159.03,158.95,50.633254]
[1730648094508,0.3080993,159.04,158.95,50.633254]
[1730648094700,0.3080993,159.04,158.95,56.924454]
[1730648096009,6.5958993,159.04,158.95,56.924454]
[1730648096314,0.3080993,159.04,158.95,72.819954]
[1730648097424,0.3080993,159.04,158.95,72.919954]
[1730648098728,0.3080993,159.04,159.01,0.12549]
[1730648099424,6.5958993,159.04,158.95,22.3754]
[1730648099924,6.5958993,159.04,158.96,22.018]
[1730648100814,6.5958993,159.04,158.96,15.7272]
[1730648101024,6.5958993,159.04,158.95,22.3754]
[1730648101224,44.153354,159.03,158.95,22.3754]
[1730648101407,44.253354,159.03,158.95,22.3754]
[1730648102036,0.1,159.02,158.95,6.4799]
[1730648102232,44.027864,159.03,158.9,6.2932]
[1730648102534,43.776884,159.03,158.9,6.2932]
[1730648102834,20.0,159.01,158.91,0.12549]
[1730648103706,20.0,159.01,158.92,0.12549]
[1730648103906,6.2893,159.0,158.92,0.12549]
[1730648104102,22.0125,159.0,158.86,23.902374]
[1730648104328,20.0,158.99,158.87,15.7358]
[1730648104520,23.776884,158.96,158.84,22.30145871]
[1730648104716,20.0,158.95,158.84,22.30145871]
[1730648104917,20.0,158.95,158.84,15.739]
[1730648105225,20.0,158.95,158.84,22.0346]
[1730648105415,20.0,158.98,158.85,0.12549]
[1730648105622,20.0,158.96,158.85,0.12549]